[Event "1000GM Spring IM-D 2024"]
[Site "New York"]
[Date "2024.03.30"]
[Round "5.6"]
[White "Espinosa, Pedro"]
[Black "Urhegyi, Marton"]
[Result "1-0"]
[ECO "D13"]
[WhiteElo "2229"]
[BlackElo "2258"]
[Annotator "RC"]
[PlyCount "161"]
[EventDate "2024.03.26"]
[EventType "tourn"]
[EventCountry "USA"]
[SourceTitle "playchess.com"]
[Source "ChessBase"]
[SourceQuality "1"]
[TimeControl "5400+30"]

1. d4 {[%emt 0:00:02]} d5 {[%emt 0:00:08]} 2. c4 {[%emt 0:00:27]} c6 {[%emt 0:00:36]} 3. cxd5 {[%emt 0:00:29]} cxd5 {[%emt 0:00:06]} 4. Bf4 {[%emt 0:00:26]} Nc6 {[%emt 0:00:16]} 5. e3 {[%emt 0:01:09]} Nf6 {[%emt 0:00:33]} 6. Nc3 {[%emt 0:00:49]} a6 {[%emt 0:00:37]} 7. Be2 {[%emt 0:00:34]} Bf5 {[%emt 0:01:36]} 8. Nf3 {[%emt 0:00:52]} e6 {[%emt 0:00:35]} 9. Qb3 {[%emt 0:01:14]} Bd6 {[%emt 0:00:28]} 10. Bxd6 {[%emt 0:01:15]} Qxd6 {[%emt 0:00:08]} 11. Qxb7 {[%emt 0:00:54]} O-O {[%emt 0:00:10]} 12. Qb3 {[%emt 0:01:36]} Rfc8 {[%emt 0:00:09]} 13. O-O {[%emt 0:04:45]} Rab8 {[%emt 0:00:25]} 14. Qd1 {[%emt 0:10:27]} Rxb2 {[%emt 0:02:00]} 15. Bxa6 {[%emt 0:05:06]} Rcb8 {[%emt 0:14:41]} 16. a4 {[%emt 0:27:19]} Qb4 {[%emt 0:26:29]} 17. Rc1 {[%emt 0:02:31]} Na5 {[%emt 0:05:35]} 18. Ne5 {[%emt 0:03:33]} Rb3 {[%emt 0:20:32]} 19. Qe1 {[%emt 0:02:16]} Rb2 {[%emt 0:16:18]} 20. Bd3 {[%emt 0:02:42]} Nb3 {[%emt 0:02:51]} 21. Bxf5 {[%emt 0:04:31]} Nxc1 {[%emt 0:00:22]} 22. Qxc1 {[%emt 0:00:45]} Qb3 {[%emt 0:04:13]} 23. Nd1 {[%emt 0:05:43]} Ra2 {[%emt 0:00:37]} 24. Bd3 {[%emt 0:02:45]} Ng4 {[%emt 0:02:03]} 25. Nc6 {[%emt 0:07:19]} Ra8 {[%emt 0:00:56]} 26. Nc3 {[%emt 0:06:03]} Ra3 {[%emt 0:00:29]} 27. Nb1 {[%emt 0:00:39]} Ra1 {[%emt 0:00:35]} 28. Bb5 {[%emt 0:01:18]} Ra2 {[%emt 0:00:30]} 29. Qc3 {[%emt 0:01:11]} Qxc3 {[%emt 0:00:25]} 30. Nxc3 {[%emt 0:00:05]} Rc2 {[%emt 0:00:10]} 31. Ne2 {[%emt 0:00:28]} Nf6 {[%emt 0:00:33]} 32. Rc1 {[%emt 0:01:12]} Rb2 {[%emt 0:00:24]} 33. f3 {[%emt 0:00:49]} Ne8 {[%emt 0:00:30]} 34. Ne7+ {[%emt 0:01:24]} Kf8 {[%emt 0:00:18]} 35. Nc8 {[%emt 0:00:24]} g5 {[%emt 0:01:10]} 36. Kf2 {[%emt 0:01:04]} h6 {[%emt 0:00:21]} 37. Kg3 {[%emt 0:00:57]} Nf6 {[%emt 0:00:32]} 38. Rc7 {[%emt 0:00:49]} Kg8 {[%emt 0:00:38]} 39. Nd6 {[%emt 0:00:40]} Rf8 {[%emt 0:00:25]} 40. a5 {[%emt 0:00:48]} Rb8 {[%emt 0:00:31]} 41. a6 {[%emt 0:01:16]} Ra2 {[%emt 0:00:24]} 42. a7 {[%emt 0:01:13]} Rb6 {[%emt 0:00:40]} 43. Rc8+ {[%emt 0:00:39]} Kg7 {[%emt 0:00:02]} 44. a8=Q {[%emt 0:00:15]} Rxa8 {[%emt 0:00:03]} 45. Rxa8 {[%emt 0:00:06]} Rxd6 {[%emt 0:00:03]} 46. Ra6 {[%emt 0:00:36]} Rd8 {[%emt 0:00:07]} 47. Bd3 {[%emt 0:00:21]} Rb8 {[%emt 0:00:14]} 48. Ra3 {[%emt 0:00:24]} Rb2 {[%emt 0:00:20]} 49. Kf2 {[%emt 0:00:17]} Nh5 {[%emt 0:00:17]} 50. Rc3 {[%emt 0:00:28]} Nf6 {[%emt 0:00:18]} 51. Rc2 {[%emt 0:00:27]} Rb3 {[%emt 0:00:13]} 52. Rd2 {[%emt 0:00:09]} Ra3 {[%emt 0:00:33]} 53. g4 {[%emt 0:00:50]} h5 {[%emt 0:00:21]} 54. gxh5 {[%emt 0:00:33]} Nxh5 {[%emt 0:00:08]} 55. f4 {[%emt 0:00:37]} gxf4 {[%emt 0:01:22]} 56. Nxf4 {[%emt 0:00:36]} Nf6 {[%emt 0:01:00]} 57. Kf3 {[%emt 0:00:26]} Ra1 {[%emt 0:03:00]} 58. Rg2+ {[%emt 0:00:11]} Kf8 {[%emt 0:00:00]} 59. Rb2 {[%emt 0:00:27]} Rh1 {[%emt 0:00:00]} 60. Rg2 {[%emt 0:00:51]} Ra1 {[%emt 0:00:00]} 61. h3 {[%emt 0:00:29]} Rh1 {[%emt 0:00:18]} 62. Kg3 {[%emt 0:00:36]} Re1 {[%emt 0:00:19]} 63. Kf2 {[%emt 0:00:14]} Rd1 {[%emt 0:00:43]} 64. Ke2 {[%emt 0:00:52]} Rh1 {[%emt 0:00:34]} 65. Rf2 {[%emt 0:00:37]} Kg7 {[%emt 0:00:19]} 66. Rf1 {[%emt 0:00:24]} Rh2+ {[%emt 0:00:07]} 67. Kf3 {[%emt 0:00:06]} Rd2 {[%emt 0:01:17]} 68. Bb1 {[%emt 0:00:39]} Nd7 {[%emt 0:00:39]} 69. Rg1+ {[%emt 0:00:21]} Kf8 {[%emt 0:00:34]} 70. Nd3 {[%emt 0:01:22]} Nf6 {[%emt 0:00:42]} 71. Ne5 {[%emt 0:00:37]} Rh2 {[%emt 0:00:08]} 72. Kg3 {[%emt 0:01:18]} Re2 {[%emt 0:00:13]} 73. Kf3 {[%emt 0:00:23]} Rh2 {[%emt 0:00:04]} 74. Ng4 {[%emt 0:00:26]} Nxg4 {[%emt 0:01:25]} 75. hxg4 {[%emt 0:00:08]} Kg7 {[%emt 0:00:32]} 76. Bd3 {[%emt 0:00:12]} Rd2 {[%emt 0:00:09]} 77. Be2 {[%emt 0:00:16]} f6 {[%emt 0:00:15]} 78. Rd1 {[%emt 0:00:18]} Ra2 {[%emt 0:00:06]} 79. Rb1 {[%emt 0:00:40]} Ra7 {[%emt 0:00:43]} 80. Rb6 {[%emt 0:00:15]} Kf7 {[%emt 0:00:11]} 81. Ba6 {[%emt 0:00:17]} 1-0

[Event "1000GM Spring IM-D 2024"]
[Site "New York"]
[Date "2024.03.30"]
[Round "5.7"]
[White "Bonin, Jay"]
[Black "Ho, Cooper"]
[Result "0-1"]
[ECO "D06"]
[WhiteElo "2154"]
[BlackElo "2004"]
[Annotator "RC"]
[PlyCount "116"]
[EventDate "2024.03.26"]
[EventType "tourn"]
[EventCountry "USA"]
[SourceTitle "playchess.com"]
[Source "ChessBase"]
[SourceQuality "1"]
[TimeControl "5400+30"]

1. d4 {[%emt 0:00:04]} d5 {[%emt 0:00:06]} 2. Nf3 {[%emt 0:00:08]} Bf5 {[%emt 0:00:07]} 3. c4 {[%emt 0:00:07]} e6 {[%emt 0:00:06]} 4. Nc3 {[%emt 0:00:04]} Nf6 {[%emt 0:00:07]} 5. Bg5 {[%emt 0:00:18]} c6 {[%emt 0:00:13]} 6. Qb3 {[%emt 0:00:47]} Qb6 {[%emt 0:01:33]} 7. Bxf6 {[%emt 0:00:28]} gxf6 {[%emt 0:04:47]} 8. c5 {[%emt 0:01:52]} Qxb3 {[%emt 0:03:12]} 9. axb3 {[%emt 0:00:08]} Nd7 {[%emt 0:04:16]} 10. b4 {[%emt 0:02:42]} Bg7 {[%emt 0:08:19]} 11. b5 {[%emt 0:03:51]} Ke7 {[%emt 0:02:15]} 12. b4 {[%emt 0:02:21]} Bg4 {[%emt 0:19:29]} 13. Nd2 {[%emt 0:03:50]} e5 {[%emt 0:12:36]} 14. e3 {[%emt 0:01:49]} f5 {[%emt 0:04:23]} 15. Nb3 {[%emt 0:00:32]} Rhb8 {[%emt 0:11:11]} 16. Kd2 {[%emt 0:05:37]} Kd8 {[%emt 0:02:51]} 17. bxc6 {[%emt 0:05:57]} bxc6 {[%emt 0:00:11]} 18. b5 {[%emt 0:00:05]} cxb5 {[%emt 0:08:14]} 19. Bxb5 {[%emt 0:01:32]} a6 {[%emt 0:01:52]} 20. Ba4 {[%emt 0:00:16]} f4 {[%emt 0:01:12]} 21. Ra3 {[%emt 0:08:57]} fxe3+ {[%emt 0:04:01]} 22. fxe3 {[%emt 0:00:08]} Bh6 {[%emt 0:03:00]} 23. Kd3 {[%emt 0:03:02]} exd4 {[%emt 0:03:30]} 24. exd4 {[%emt 0:00:10]} Nf6 {[%emt 0:00:41]} 25. Rf1 {[%emt 0:00:33]} Bg5 {[%emt 0:01:37]} 26. Bc6 {[%emt 0:02:20]} Ra7 {[%emt 0:00:30]} 27. Nxd5 {[%emt 0:01:27]} Nxd5 {[%emt 0:00:47]} 28. Bxd5 {[%emt 0:00:05]} Re7 {[%emt 0:00:29]} 29. Bf3 {[%emt 0:01:57]} Bf5+ {[%emt 0:01:20]} 30. Kc4 {[%emt 0:00:11]} Re3 {[%emt 0:00:08]} 31. Rfa1 {[%emt 0:03:19]} Bd3+ {[%emt 0:01:40]} 32. Kd5 {[%emt 0:00:21]} Kc7 {[%emt 0:00:18]} 33. Rxa6 {[%emt 0:01:42]} Bxa6 {[%emt 0:00:07]} 34. Rxa6 {[%emt 0:00:13]} Rexb3 {[%emt 0:00:13]} 35. Rc6+ {[%emt 0:00:31]} Kd7 {[%emt 0:00:13]} 36. Bg4+ {[%emt 0:00:09]} Ke7 {[%emt 0:00:08]} 37. Rc7+ {[%emt 0:00:09]} Kf6 {[%emt 0:00:12]} 38. Bh5 {[%emt 0:00:12]} R3b7 {[%emt 0:00:10]} 39. Rc6+ {[%emt 0:02:38]} Ke7 {[%emt 0:00:18]} 40. Ke4 {[%emt 0:00:49]} Rd8 {[%emt 0:00:24]} 41. Ra6 {[%emt 0:01:44]} Rbd7 {[%emt 0:00:53]} 42. c6 {[%emt 0:00:20]} Rxd4+ {[%emt 0:00:07]} 43. Kf3 {[%emt 0:00:02]} Rf4+ {[%emt 0:01:08]} 44. Ke2 {[%emt 0:00:08]} Kd6 {[%emt 0:00:33]} 45. Bf3 {[%emt 0:00:17]} Rc8 {[%emt 0:00:49]} 46. Ra5 {[%emt 0:00:20]} Re8+ {[%emt 0:00:43]} 47. Kf2 {[%emt 0:01:01]} Bd8 {[%emt 0:00:51]} 48. Rd5+ {[%emt 0:01:09]} Ke6 {[%emt 0:00:05]} 49. Rd7 {[%emt 0:00:22]} Bb6+ {[%emt 0:00:50]} 50. Kg3 {[%emt 0:00:13]} Rxf3+ {[%emt 0:01:26]} 51. Kxf3 {[%emt 0:00:17]} Rc8 {[%emt 0:00:08]} 52. Rb7 {[%emt 0:00:29]} Rxc6 {[%emt 0:00:02]} 53. g4 {[%emt 0:01:46]} Bc7 {[%emt 0:00:40]} 54. h4 {[%emt 0:00:17]} Be5 {[%emt 0:00:45]} 55. g5 {[%emt 0:00:36]} Rc4 {[%emt 0:00:13]} 56. Rb6+ {[%emt 0:00:23]} Bd6 {[%emt 0:00:46]} 57. h5 {[%emt 0:00:16]} Rf4+ {[%emt 0:00:10]} 58. Ke3 {[%emt 0:00:14]} Rf5 {[%emt 0:02:35]} 0-1

[Event "1000GM Spring IM-D 2024"]
[Site "New York"]
[Date "2024.03.30"]
[Round "5.8"]
[White "Gaw, Chloe"]
[Black "Khodzhamkuliev, Bahadur"]
[Result "0-1"]
[ECO "E91"]
[WhiteElo "2092"]
[BlackElo "2159"]
[Annotator "RC"]
[PlyCount "160"]
[EventDate "2024.03.26"]
[EventType "tourn"]
[EventCountry "USA"]
[SourceTitle "playchess.com"]
[Source "ChessBase"]
[SourceQuality "1"]
[TimeControl "5400+30"]

1. d4 {[%emt 0:00:43]} d6 {[%emt 0:00:05]} 2. c4 {[%emt 0:00:04]} Nc6 {[%emt 0:00:05]} 3. d5 {[%emt 0:00:07]} Nb8 {[%emt 0:00:04]} 4. e4 {[%emt 0:00:43]} Nf6 {[%emt 0:00:10]} 5. Nc3 {[%emt 0:00:08]} g6 {[%emt 0:00:13]} 6. Be2 {[%emt 0:01:02]} Bg7 {[%emt 0:00:10]} 7. h3 {[%emt 0:01:00]} O-O {[%emt 0:00:28]} 8. Nf3 {[%emt 0:00:15]} a5 {[%emt 0:00:18]} 9. Be3 {[%emt 0:01:04]} Na6 {[%emt 0:00:40]} 10. Nd2 {[%emt 0:01:56]} c6 {[%emt 0:00:54]} 11. O-O {[%emt 0:00:25]} cxd5 {[%emt 0:01:26]} 12. cxd5 {[%emt 0:01:01]} Nc5 {[%emt 0:01:49]} 13. Qc2 {[%emt 0:02:35]} Bd7 {[%emt 0:02:44]} 14. Nb3 {[%emt 0:06:35]} Na4 {[%emt 0:03:14]} 15. Nd4 {[%emt 0:03:20]} Qc7 {[%emt 0:09:08]} 16. Bd3 {[%emt 0:04:59]} Nxc3 {[%emt 0:04:56]} 17. bxc3 {[%emt 0:00:28]} Rfc8 {[%emt 0:01:00]} 18. Rac1 {[%emt 0:03:10]} Be8 {[%emt 0:01:28]} 19. Nb5 {[%emt 0:17:31]} Bxb5 {[%emt 0:01:16]} 20. Bxb5 {[%emt 0:00:06]} Nd7 {[%emt 0:00:23]} 21. Bxd7 {[%emt 0:01:05]} Qxd7 {[%emt 0:00:09]} 22. Qb3 {[%emt 0:01:37]} b5 {[%emt 0:06:14]} 23. c4 {[%emt 0:08:00]} b4 {[%emt 0:01:10]} 24. Bd2 {[%emt 0:05:50]} Rab8 {[%emt 0:01:56]} 25. Rb1 {[%emt 0:04:50]} Qa7 {[%emt 0:04:43]} 26. Qd3 {[%emt 0:09:53]} Qd4 {[%emt 0:01:38]} 27. Qxd4 {[%emt 0:00:19]} Bxd4 {[%emt 0:00:05]} 28. Rfc1 {[%emt 0:00:38]} Rb7 {[%emt 0:10:50]} 29. a3 {[%emt 0:08:34]} Rcb8 {[%emt 0:04:58]} 30. axb4 {[%emt 0:17:32]} axb4 {[%emt 0:43:16]} 31. Rb3 {[%emt 0:00:00]} e5 {[%emt 0:00:00]} 32. Rcb1 {[%emt 0:00:00]} Bc5 {[%emt 0:00:00]} 33. Kf1 {[%emt 0:00:00]} f5 {[%emt 0:00:00]} 34. f3 {[%emt 0:00:00]} fxe4 {[%emt 0:00:00]} 35. fxe4 {[%emt 0:00:00]} Rf7+ {[%emt 0:00:00]} 36. Rf3 {[%emt 0:00:00]} Ra8 {[%emt 0:00:00]} 37. Rxf7 {[%emt 0:00:00]} Kxf7 {[%emt 0:00:00]} 38. Ke2 {[%emt 0:00:00]} Ra2 {[%emt 0:00:00]} 39. Kd1 {[%emt 0:00:00]} Ra4 {[%emt 0:00:00]} 40. Kc2 {[%emt 0:01:10]} Ke7 {[%emt 0:00:00]} 41. Bc1 {[%emt 0:02:22]} b3+ {[%emt 0:00:00]} 42. Kd3 {[%emt 0:01:28]} Ra2 {[%emt 0:00:00]} 43. Bd2 {[%emt 0:00:28]} Ra3 {[%emt 0:00:00]} 44. Bc3 {[%emt 0:00:07]} h5 {[%emt 0:00:00]} 45. Bb2 {[%emt 0:00:18]} Ra8 {[%emt 0:00:00]} 46. Rf1 {[%emt 0:01:03]} h4 {[%emt 0:00:00]} 47. Kd2 {[%emt 0:00:48]} Ra2 {[%emt 0:00:00]} 48. Rb1 {[%emt 0:00:23]} Bd4 {[%emt 0:00:00]} 49. Kc1 {[%emt 0:00:04]} Ra4 {[%emt 0:02:18]} 50. Bxd4 {[%emt 0:00:14]} Rxc4+ {[%emt 0:00:04]} 51. Kd2 {[%emt 0:00:27]} Rxd4+ {[%emt 0:00:07]} 52. Ke3 {[%emt 0:00:02]} Rb4 {[%emt 0:00:17]} 53. Rb2 {[%emt 0:00:14]} Kd7 {[%emt 0:00:34]} 54. Kd3 {[%emt 0:00:16]} Kc7 {[%emt 0:01:04]} 55. Kc3 {[%emt 0:00:59]} Rxe4 {[%emt 0:00:15]} 56. Kxb3 {[%emt 0:00:35]} Rd4 {[%emt 0:00:23]} 57. Rf2 {[%emt 0:00:38]} Rxd5 {[%emt 0:00:14]} 58. Rf6 {[%emt 0:01:10]} g5 {[%emt 0:01:02]} 59. Rf5 {[%emt 0:00:11]} Rd3+ {[%emt 0:00:15]} 60. Kc4 {[%emt 0:00:14]} Rd4+ {[%emt 0:00:58]} 61. Kc3 {[%emt 0:00:12]} g4 {[%emt 0:00:09]} 62. hxg4 {[%emt 0:00:32]} Rxg4 {[%emt 0:00:05]} 63. Rf2 {[%emt 0:00:08]} Kd7 {[%emt 0:00:27]} 64. Kd3 {[%emt 0:00:22]} d5 {[%emt 0:00:38]} 65. Rf7+ {[%emt 0:01:16]} Ke6 {[%emt 0:00:08]} 66. Rh7 {[%emt 0:00:13]} Rg3+ {[%emt 0:00:08]} 67. Ke2 {[%emt 0:00:07]} Rxg2+ {[%emt 0:00:10]} 68. Kf3 {[%emt 0:00:27]} Rg3+ {[%emt 0:00:10]} 69. Kf2 {[%emt 0:00:08]} Rg4 {[%emt 0:00:04]} 70. Kf3 {[%emt 0:00:08]} Rf4+ {[%emt 0:00:05]} 71. Ke3 {[%emt 0:00:07]} Kf6 {[%emt 0:00:28]} 72. Rh8 {[%emt 0:00:30]} d4+ {[%emt 0:00:04]} 73. Kd3 {[%emt 0:00:07]} Rf3+ {[%emt 0:00:17]} 74. Ke2 {[%emt 0:00:50]} Re3+ {[%emt 0:00:16]} 75. Kf2 {[%emt 0:00:20]} h3 {[%emt 0:00:06]} 76. Rh5 {[%emt 0:00:48]} Kg6 {[%emt 0:00:38]} 77. Rh8 {[%emt 0:00:20]} Kf5 {[%emt 0:00:08]} 78. Rh4 {[%emt 0:00:19]} Ke6 {[%emt 0:00:21]} 79. Rh8 {[%emt 0:00:33]} Kd5 {[%emt 0:00:07]} 80. Rh4 {[%emt 0:00:17]} Kc4 {[%emt 0:00:17]} 0-1

[Event "1000GM Spring IM-D 2024"]
[Site "New York"]
[Date "2024.03.30"]
[Round "5.9"]
[White "Zaderman, Vitaly"]
[Black "Mou, Iris"]
[Result "1-0"]
[ECO "E49"]
[WhiteElo "2177"]
[BlackElo "2216"]
[Annotator "RC"]
[PlyCount "87"]
[EventDate "2024.03.26"]
[EventType "tourn"]
[EventCountry "USA"]
[SourceTitle "playchess.com"]
[Source "ChessBase"]
[SourceQuality "1"]
[TimeControl "5400+30"]

1. d4 {[%emt 0:00:09]} Nf6 {[%emt 0:00:12]} 2. c4 {[%emt 0:00:09]} e6 {[%emt 0:00:06]} 3. Nc3 {[%emt 0:00:09]} Bb4 {[%emt 0:00:07]} 4. e3 {[%emt 0:00:07]} O-O {[%emt 0:00:09]} 5. Bd3 {[%emt 0:00:10]} d5 {[%emt 0:00:09]} 6. a3 {[%emt 0:00:08]} Bxc3+ {[%emt 0:00:42]} 7. bxc3 {[%emt 0:00:08]} dxc4 {[%emt 0:00:06]} 8. Bxc4 {[%emt 0:00:11]} c5 {[%emt 0:00:06]} 9. Bd3 {[%emt 0:00:47]} Qc7 {[%emt 0:01:00]} 10. Bb2 {[%emt 0:00:50]} b6 {[%emt 0:02:27]} 11. c4 {[%emt 0:00:57]} Nbd7 {[%emt 0:04:50]} 12. Nf3 {[%emt 0:02:02]} Bb7 {[%emt 0:01:13]} 13. O-O {[%emt 0:02:07]} Rfd8 {[%emt 0:05:01]} 14. Qe2 {[%emt 0:00:27]} h6 {[%emt 0:02:43]} 15. Rfd1 {[%emt 0:02:08]} Rac8 {[%emt 0:04:38]} 16. Rac1 {[%emt 0:01:29]} Ng4 {[%emt 0:07:54]} 17. d5 {[%emt 0:11:14]} exd5 {[%emt 0:04:31]} 18. Bf5 {[%emt 0:00:14]} Ngf6 {[%emt 0:08:32]} 19. Bxf6 {[%emt 0:00:23]} Nxf6 {[%emt 0:03:35]} 20. Bxc8 {[%emt 0:00:10]} Rxc8 {[%emt 0:00:34]} 21. cxd5 {[%emt 0:00:21]} Bxd5 {[%emt 0:00:43]} 22. Nd2 {[%emt 0:03:05]} Qc6 {[%emt 0:07:57]} 23. f3 {[%emt 0:00:20]} b5 {[%emt 0:01:52]} 24. e4 {[%emt 0:00:45]} Be6 {[%emt 0:00:21]} 25. e5 {[%emt 0:03:50]} Nd5 {[%emt 0:03:40]} 26. Ne4 {[%emt 0:00:15]} c4 {[%emt 0:01:15]} 27. Qf2 {[%emt 0:00:35]} a5 {[%emt 0:11:11]} 28. f4 {[%emt 0:01:12]} Rc7 {[%emt 0:09:46]} 29. f5 {[%emt 0:05:45]} Bc8 {[%emt 0:00:35]} 30. Nd6 {[%emt 0:00:49]} Bb7 {[%emt 0:04:06]} 31. f6 {[%emt 0:26:02]} g6 {[%emt 0:08:53]} 32. Nxb7 {[%emt 0:00:18]} Rxb7 {[%emt 0:00:25]} 33. Qd2 {[%emt 0:00:11]} Qc5+ {[%emt 0:01:56]} 34. Kh1 {[%emt 0:01:01]} Ne3 {[%emt 0:00:37]} 35. Qd8+ {[%emt 0:00:40]} Kh7 {[%emt 0:00:06]} 36. e6 {[%emt 0:10:46]} Nxd1 {[%emt 0:01:45]} 37. Rxd1 {[%emt 0:00:11]} Qe5 {[%emt 0:04:33]} 38. e7 {[%emt 0:00:18]} Rb8 {[%emt 0:00:29]} 39. Qf8 {[%emt 0:01:44]} Rxf8 {[%emt 0:00:38]} 40. exf8=Q {[%emt 0:00:29]} Qxf6 {[%emt 0:00:03]} 41. Qc5 {[%emt 0:01:32]} Qb2 {[%emt 0:00:53]} 42. Rf1 {[%emt 0:00:48]} Qg7 {[%emt 0:00:33]} 43. Qxb5 {[%emt 0:00:24]} c3 {[%emt 0:00:04]} 44. Qc4 {[%emt 0:00:24]} 1-0

[Event "1000GM Spring IM-D 2024"]
[Site "New York"]
[Date "2024.03.30"]
[Round "6.1"]
[White "Lapshun, Yury"]
[Black "Shangin, Lev"]
[Result "1-0"]
[ECO "D37"]
[WhiteElo "2332"]
[BlackElo "1994"]
[Annotator "RC"]
[PlyCount "159"]
[EventDate "2024.03.26"]
[EventType "tourn"]
[EventCountry "USA"]
[SourceTitle "playchess.com"]
[Source "ChessBase"]
[SourceQuality "1"]
[TimeControl "5400+30"]

1. d4 {[%emt 0:38:18]} Nf6 {[%emt 0:00:32]} 2. Nf3 {[%emt 0:00:33]} d5 {[%emt 0:00:16]} 3. e3 {[%emt 0:00:04]} e6 {[%emt 0:00:22]} 4. c4 {[%emt 0:00:11]} Be7 {[%emt 0:00:57]} 5. Nc3 {[%emt 0:01:15]} O-O {[%emt 0:01:23]} 6. Qc2 {[%emt 0:00:19]} c5 {[%emt 0:03:13]} 7. a3 {[%emt 0:00:36]} cxd4 {[%emt 0:01:00]} 8. exd4 {[%emt 0:00:05]} dxc4 {[%emt 0:05:48]} 9. Bxc4 {[%emt 0:00:03]} b6 {[%emt 0:00:22]} 10. O-O {[%emt 0:09:34]} Bb7 {[%emt 0:02:55]} 11. Qd3 {[%emt 0:00:22]} Nd5 {[%emt 0:10:41]} 12. Ne4 {[%emt 0:02:45]} Nd7 {[%emt 0:03:29]} 13. Neg5 {[%emt 0:07:18]} N7f6 {[%emt 0:02:06]} 14. Ne5 {[%emt 0:00:12]} h6 {[%emt 0:03:40]} 15. Ngxf7 {[%emt 0:03:23]} Rxf7 {[%emt 0:00:37]} 16. Qg6 {[%emt 0:00:11]} Qe8 {[%emt 0:12:22]} 17. Bxh6 {[%emt 0:00:55]} Bd6 {[%emt 0:04:48]} 18. Bb5 {[%emt 0:05:29]} Qe7 {[%emt 0:07:44]} 19. Bg5 {[%emt 0:11:19]} Bxe5 {[%emt 0:09:43]} 20. dxe5 {[%emt 0:00:06]} Qc5 {[%emt 0:00:17]} 21. exf6 {[%emt 0:04:39]} Qxb5 {[%emt 0:01:45]} 22. fxg7 {[%emt 0:00:02]} Qc6 {[%emt 0:03:35]} 23. f3 {[%emt 0:02:25]} Rxg7 {[%emt 0:01:21]} 24. Qh6 {[%emt 0:00:16]} Rh7 {[%emt 0:02:39]} 25. Qg6+ {[%emt 0:00:14]} Rg7 {[%emt 0:00:00]} 26. Qh6 {[%emt 0:00:09]} Qe8 {[%emt 0:01:07]} 27. Rae1 {[%emt 0:01:23]} Rg6 {[%emt 0:01:19]} 28. Qh4 {[%emt 0:01:13]} Qf7 {[%emt 0:03:12]} 29. Re5 {[%emt 0:00:54]} Qg7 {[%emt 0:02:35]} 30. Rfe1 {[%emt 0:01:03]} Rf8 {[%emt 0:00:48]} 31. Qg3 {[%emt 0:01:25]} Nf4 {[%emt 0:03:41]} 32. h4 {[%emt 0:00:11]} Nd3 {[%emt 0:00:29]} 33. h5 {[%emt 0:02:21]} Nxe1 {[%emt 0:05:25]} 34. hxg6 {[%emt 0:00:19]} Nxf3+ {[%emt 0:02:12]} 35. gxf3 {[%emt 0:00:22]} Rxf3 {[%emt 0:00:01]} 36. Qe1 {[%emt 0:02:12]} Qxg6 {[%emt 0:00:26]} 37. Qd1 {[%emt 0:00:32]} Qh5 {[%emt 0:01:32]} 38. Qd8+ {[%emt 0:00:39]} Rf8 {[%emt 0:00:08]} 39. Qxf8+ {[%emt 0:00:06]} Kxf8 {[%emt 0:00:02]} 40. Be7+ {[%emt 0:00:13]} Kxe7 {[%emt 0:00:04]} 41. Rxh5 {[%emt 0:00:04]} Be4 {[%emt 0:00:24]} 42. Kf2 {[%emt 0:00:09]} Kd6 {[%emt 0:00:24]} 43. Ke3 {[%emt 0:00:07]} Bd5 {[%emt 0:00:30]} 44. Kd4 {[%emt 0:00:25]} a5 {[%emt 0:01:10]} 45. Rg5 {[%emt 0:00:29]} Bc6 {[%emt 0:00:37]} 46. Kc4 {[%emt 0:00:16]} b5+ {[%emt 0:00:45]} 47. Kd4 {[%emt 0:00:52]} Bd5 {[%emt 0:00:15]} 48. b4 {[%emt 0:00:13]} axb4 {[%emt 0:00:31]} 49. axb4 {[%emt 0:00:05]} Bc4 {[%emt 0:00:24]} 50. Ke3 {[%emt 0:02:00]} Bd5 {[%emt 0:00:57]} 51. Kf4 {[%emt 0:00:12]} Bc4 {[%emt 0:00:42]} 52. Rc5 {[%emt 0:00:33]} Bd3 {[%emt 0:00:17]} 53. Rc8 {[%emt 0:00:23]} Kd5 {[%emt 0:00:52]} 54. Ke3 {[%emt 0:00:41]} Bc4 {[%emt 0:00:28]} 55. Rd8+ {[%emt 0:00:17]} Ke5 {[%emt 0:00:16]} 56. Rd7 {[%emt 0:01:27]} Bd5 {[%emt 0:00:46]} 57. Rd8 {[%emt 0:01:29]} Bc6 {[%emt 0:00:42]} 58. Rh8 {[%emt 0:00:24]} Kd5 {[%emt 0:01:04]} 59. Kd3 {[%emt 0:00:37]} Bd7 {[%emt 0:00:27]} 60. Rd8 {[%emt 0:00:21]} Kd6 {[%emt 0:00:06]} 61. Ke4 {[%emt 0:00:09]} Kc7 {[%emt 0:00:14]} 62. Rh8 {[%emt 0:00:35]} Kd6 {[%emt 0:00:06]} 63. Rh5 {[%emt 0:00:26]} Bc6+ {[%emt 0:00:21]} 64. Kf4 {[%emt 0:00:02]} Bd5 {[%emt 0:00:44]} 65. Rg5 {[%emt 0:00:04]} Bc4 {[%emt 0:00:38]} 66. Rc5 {[%emt 0:00:10]} Bd3 {[%emt 0:00:20]} 67. Kg5 {[%emt 0:00:23]} e5 {[%emt 0:00:56]} 68. Kf6 {[%emt 0:00:39]} e4 {[%emt 0:00:28]} 69. Re5 {[%emt 0:00:04]} Kc6 {[%emt 0:01:45]} 70. Ke7 {[%emt 0:00:23]} Bb1 {[%emt 0:00:56]} 71. Rc5+ {[%emt 0:00:42]} Kb6 {[%emt 0:00:22]} 72. Kd6 {[%emt 0:00:13]} Bd3 {[%emt 0:00:48]} 73. Re5 {[%emt 0:00:06]} Bc2 {[%emt 0:00:31]} 74. Re6 {[%emt 0:00:34]} Bd3 {[%emt 0:00:47]} 75. Kd5+ {[%emt 0:00:13]} Kb7 {[%emt 0:00:07]} 76. Kc5 {[%emt 0:00:09]} Kc7 {[%emt 0:00:12]} 77. Re7+ {[%emt 0:00:07]} Kd8 {[%emt 0:00:08]} 78. Kd6 {[%emt 0:00:06]} Bc2 {[%emt 0:00:30]} 79. Rb7 {[%emt 0:00:57]} Kc8 {[%emt 0:00:42]} 80. Rc7+ {[%emt 0:00:06]} 1-0

[Event "1000GM Spring IM-D 2024"]
[Site "New York"]
[Date "2024.03.30"]
[Round "6.2"]
[White "Fedorowicz, John"]
[Black "Cherukuri, Nitesh"]
[Result "1-0"]
[ECO "E66"]
[WhiteElo "2372"]
[BlackElo "2000"]
[Annotator "RC"]
[PlyCount "65"]
[EventDate "2024.03.26"]
[EventType "tourn"]
[EventCountry "USA"]
[SourceTitle "playchess.com"]
[Source "ChessBase"]
[SourceQuality "1"]
[TimeControl "5400+30"]

1. d4 {[%emt 0:00:53]} Nf6 {[%emt 0:00:36]} 2. c4 {[%emt 0:01:10]} g6 {[%emt 0:00:12]} 3. Nf3 {[%emt 0:00:57]} Bg7 {[%emt 0:00:23]} 4. g3 {[%emt 0:00:56]} O-O {[%emt 0:00:13]} 5. Bg2 {[%emt 0:00:31]} d6 {[%emt 0:00:14]} 6. Nc3 {[%emt 0:01:03]} Nc6 {[%emt 0:00:18]} 7. d5 {[%emt 0:00:51]} Na5 {[%emt 0:00:11]} 8. b3 {[%emt 0:00:22]} c5 {[%emt 0:00:33]} 9. Bb2 {[%emt 0:00:12]} a6 {[%emt 0:00:38]} 10. O-O {[%emt 0:03:41]} Rb8 {[%emt 0:01:04]} 11. Nd2 {[%emt 0:00:21]} b5 {[%emt 0:01:28]} 12. Qc2 {[%emt 0:00:29]} bxc4 {[%emt 0:08:58]} 13. bxc4 {[%emt 0:00:07]} e5 {[%emt 0:01:20]} 14. Nd1 {[%emt 0:02:45]} Nh5 {[%emt 1:21:22]} 15. Bc3 {[%emt 0:03:26]} Bd7 {[%emt 0:00:00]} 16. e4 {[%emt 0:02:54]} f5 {[%emt 0:00:00]} 17. exf5 {[%emt 0:00:08]} gxf5 {[%emt 0:00:00]} 18. Rb1 {[%emt 0:13:44]} Rxb1 {[%emt 0:00:00]} 19. Qxb1 {[%emt 0:00:06]} Qc7 {[%emt 0:00:00]} 20. Qb2 {[%emt 0:04:09]} Nb7 {[%emt 0:00:00]} 21. f4 {[%emt 0:00:57]} exf4 {[%emt 0:00:00]} 22. Bxg7 {[%emt 0:01:02]} Nxg7 {[%emt 0:00:00]} 23. gxf4 {[%emt 0:00:52]} Re8 {[%emt 0:00:00]} 24. Bf3 {[%emt 0:00:54]} Re7 {[%emt 0:00:00]} 25. Kh1 {[%emt 0:00:46]} Ne8 {[%emt 0:00:00]} 26. Bh5 {[%emt 0:03:51]} Ng7 {[%emt 0:00:00]} 27. Rg1 {[%emt 0:00:15]} Be8 {[%emt 0:00:00]} 28. Bxe8 {[%emt 0:01:10]} Rxe8 {[%emt 0:00:00]} 29. Nf3 {[%emt 0:00:16]} Nd8 {[%emt 0:00:00]} 30. Nh4 {[%emt 0:08:59]} Qe7 {[%emt 0:00:00]} 31. Ne3 {[%emt 0:01:43]} Kf8 {[%emt 0:00:00]} 32. Nhxf5 {[%emt 0:05:03]} Nxf5 {[%emt 0:00:00]} 33. Qh8+ {[%emt 0:00:16]} 1-0